bitfinex/quotes_ETHUSD_20220117
["timestamp","ask_amount","ask_price","bid_price","bid_amount"]
[1642410269259,3.49608204,3266.8,3266.6,1.6504606]
[1642410269657,3.49608204,3266.8,3266.3,0.2]
[1642410269658,3.49608204,3266.8,3266.1,1.49759341]
[1642410270057,3.20058204,3266.8,3266.2,0.00284212]
[1642410270657,3.96621204,3266.8,3266.2,0.00284212]
[1642410271303,1.24406556,3266.3,3266.0,0.00397897]
[1642410271505,0.3,3266.2,3266.0,0.00397897]
[1642410272304,0.3,3266.2,3265.9,0.00454739]
[1642410272903,1.53129,3266.2,3265.9,0.00454739]
[1642410273105,0.3,3266.1,3265.9,0.00454739]
[1642410273304,0.3,3266.1,3265.8,0.00511581]
[1642410273907,0.3,3266.1,3265.8,1.50270922]
[1642410274106,1.53129,3266.0,3265.8,1.50270922]
[1642410274311,2.67859,3266.0,3265.9,0.00454739]
[1642410274751,2.67859,3266.0,3265.5,2.19615845]
[1642410274954,1.15962043,3265.8,3265.4,1.49759341]
[1642410275153,1.53152,3265.9,3265.6,0.00170527]
[1642410276757,1.53152,3265.9,3265.5,1.49759341]
[1642410276758,1.46679703,3265.7,3265.5,1.49759341]
[1642410277356,1.46679703,3265.7,3265.3,5.091]
[1642410277555,1.46679703,3265.7,3265.3,3.8982]
[1642410277757,1.46679703,3265.7,3265.4,0.00113685]
[1642410278607,0.438,3265.6,3265.4,0.00113685]
[1642410279405,0.438,3265.6,3265.0,3.7216]
[1642410279609,0.65572,3265.6,3265.0,3.7216]
[1642410279804,0.65572,3265.6,3265.1,0.00170527]
[1642410280007,1.10418856,3265.2,3265.1,0.00170527]
[1642410280206,1.54218856,3265.2,3265.1,0.00170527]
[1642410280407,1.54218856,3265.2,3265.0,0.00227369]
[1642410280904,1.54218856,3265.2,3264.7,2.19615845]
[1642410281306,1.54218856,3265.2,3264.8,0.00113685]
[1642410281505,1.54218856,3265.2,3264.7,2.19615845]
[1642410281704,0.00170527,3265.1,3264.7,2.19615845]
[1642410281905,0.00170527,3265.1,3264.4,10.01307417]
[1642410281906,0.76591,3265.0,3264.4,3.0869]
[1642410282109,0.76591,3265.0,3264.3,1.127]
[1642410282110,0.00793094,3264.9,3264.3,1.127]
[1642410282374,0.76704685,3265.0,3264.5,0.00170527]
[1642410282574,0.00113685,3265.0,3264.5,0.00170527]
[1642410283373,0.00113685,3265.0,3264.6,1.49226631]
[1642410283577,0.00113685,3265.0,3264.9,24.60745866]
[1642410283973,0.00113685,3265.0,3264.9,24.90745866]
[1642410284975,0.00113685,3265.0,3264.9,7.96240913]
[1642410285473,0.00113685,3265.0,3264.9,6.85495047]
[1642410285874,0.00113685,3265.0,3264.9,3.9244158]
[1642410286108,0.00113685,3265.0,3264.9,2.9244158]
[1642410286305,0.00113685,3265.0,3264.9,16.9744158]
[1642410286905,0.00113685,3265.0,3264.9,2.9244158]
[1642410287504,0.00113685,3265.0,3264.9,2.6244158]
[1642410289008,0.00113685,3265.0,3264.8,2.6244158]
[1642410289206,0.00113685,3265.0,3264.8,2.9244158]
[1642410289866,0.00113685,3265.0,3264.9,19.6]
[1642410290859,0.00113685,3265.0,3264.9,22.2244158]
[1642410291662,0.00113685,3265.0,3264.9,40.1044158]
[1642410291864,0.00113685,3265.0,3264.9,44.03495047]
[1642410292665,2.29694,3266.8,3264.9,25.479781]
[1642410292866,2.29694,3266.8,3265.0,6.9682]
[1642410293065,0.00625266,3266.1,3265.4,0.6123065]
[1642410293266,0.00625266,3266.1,3265.5,1.2126]
[1642410293514,0.00568423,3266.0,3265.5,1.2126]
[1642410293907,0.00511581,3265.9,3265.5,2.23529629]
[1642410294108,0.00511581,3265.9,3265.7,1.20880198]
[1642410294307,0.00454739,3265.8,3265.7,1.20880198]
[1642410294507,0.00454739,3265.8,3265.7,0.3]
[1642410294708,0.00454739,3265.8,3265.5,1.2126]
[1642410295112,0.00397896,3265.7,3265.5,1.2126]
[1642410295509,0.00341054,3265.6,3265.5,1.2126]
[1642410296509,0.76545,3266.6,3265.5,1.2126]
[1642410296910,0.00511581,3266.5,3265.5,1.2126]
[1642410297365,0.00454739,3266.4,3265.5,1.2126]
[1642410297767,0.76553,3266.2,3265.5,1.2126]
[1642410298163,0.00284212,3266.1,3265.5,1.2126]
[1642410298563,0.00227369,3266.0,3265.5,1.2126]
[1642410298963,0.00170527,3265.9,3265.5,1.2126]
[1642410299365,0.00113685,3265.8,3265.5,1.2126]
[1642410299563,0.00113685,3265.8,3265.5,1.5126]
[1642410301410,0.00113685,3265.8,3265.5,1.2126]
[1642410302008,0.00113685,3265.8,3265.5,1.20054]
[1642410302608,0.00113685,3265.8,3265.0,10.90214522]
[1642410302816,0.00113685,3265.8,3265.0,12.44002815]
[1642410303008,0.00113685,3265.8,3265.1,0.00284212]
[1642410305955,0.00822371,3265.5,3265.1,0.00284212]
[1642410306159,0.76574,3265.5,3265.1,0.00284212]
[1642410306656,0.01913583,3265.4,3265.1,0.00284212]
[1642410306856,0.76574,3265.5,3265.1,0.00284212]
[1642410310206,0.01766716,3265.4,3265.1,0.00284212]
[1642410310605,0.76574,3265.5,3265.1,2.62747868]
[1642410311105,0.76574,3265.5,3265.2,0.0022737]
[1642410315361,4.7812559,3265.5,3265.2,0.0022737]
[1642410315564,0.438,3265.4,3265.2,0.0022737]
[1642410315761,3.11241836,3265.3,3265.2,0.0022737]
[1642410316016,3.55041836,3265.3,3265.1,2.62463656]
[1642410316208,3.01395072,3265.2,3265.1,2.62463656]
[1642410316408,4.45195072,3265.2,3264.5,1.2426]
[1642410316607,0.76598,3265.1,3264.5,1.2426]
[1642410316811,0.76598,3265.1,3264.6,0.00341054]
[1642410317209,3.12048452,3265.0,3264.6,0.00341054]
[1642410317613,0.76598,3265.1,3264.6,0.00341054]
[1642410317809,0.76598,3265.1,3264.5,0.00397896]
[1642410318214,0.76598,3265.1,3264.4,0.00454738]
[1642410318410,1.76598,3265.1,3264.4,0.00454738]
[1642410319410,0.76598,3265.1,3264.4,0.00454738]
[1642410320766,1.06598,3265.1,3264.4,0.00454738]
[1642410322762,0.3,3265.1,3264.4,0.00454738]
[1642410324026,0.3,3265.1,3264.8,1.29528186]
[1642410324228,1.53142,3265.6,3264.8,1.29528186]
[1642410324428,1.53117,3266.2,3264.9,0.00170527]
[1642410324627,0.00170528,3265.5,3264.9,0.00170527]
[1642410324826,0.00284212,3265.7,3264.9,1.16240527]
[1642410325025,3.01432033,3266.6,3264.9,1.16240527]
[1642410325026,0.00113685,3265.4,3264.9,1.16240527]
[1642410325227,3.01432033,3266.6,3264.9,1.16240527]
[1642410325228,0.0022737,3265.6,3265.0,6.79283684]
[1642410325430,0.76559,3265.9,3265.0,6.79283684]
[1642410325627,0.00170528,3265.5,3265.0,6.79283684]
[1642410325827,0.00341055,3265.8,3265.0,6.79283684]
[1642410326032,0.00113685,3265.4,3265.0,6.79283684]
[1642410326227,0.00284212,3265.7,3265.0,6.79283684]
[1642410326427,0.00341055,3265.8,3265.0,6.79283684]
[1642410326627,0.0022737,3265.6,3265.0,6.79283684]
[1642410326828,0.00284212,3265.7,3265.0,6.79283684]
[1642410327129,0.0022737,3265.6,3265.0,6.79283684]
[1642410327562,0.00170528,3265.5,3265.0,6.79283684]
[1642410327962,0.00113685,3265.4,3265.0,6.79283684]
[1642410328363,0.00511582,3266.1,3265.0,6.79283684]
[1642410328569,0.30511582,3266.1,3265.0,10.72337151]
[1642410328863,0.00454739,3266.0,3265.0,10.72337151]
[1642410329263,0.00397897,3265.9,3265.0,10.72337151]
[1642410329663,0.00341055,3265.8,3265.0,6.79283684]
[1642410330064,0.00284212,3265.7,3265.0,6.79283684]
[1642410330465,0.0022737,3265.6,3265.0,6.79283684]
[1642410330866,0.00170528,3265.5,3265.0,6.79283684]
[1642410331308,0.00113685,3265.4,3265.0,6.79283684]
[1642410331709,0.3,3265.6,3265.0,6.79283684]
[1642410332107,0.00170528,3265.5,3265.0,6.79283684]
[1642410332507,0.00113685,3265.4,3265.0,6.79283684]
[1642410332707,0.00113685,3265.4,3265.0,3.68863684]
[1642410332907,1.06563,3265.6,3265.0,3.68863684]
[1642410332908,0.00170528,3265.5,3265.0,3.68863684]
[1642410333307,0.00113685,3265.4,3265.0,3.68863684]
[1642410333712,0.00170528,3265.5,3265.0,3.68863684]
[1642410334007,0.00113685,3265.4,3265.0,3.68863684]
[1642410334509,0.00170528,3265.5,3265.0,3.68863684]
[1642410334959,0.00113685,3265.4,3265.0,3.68863684]
[1642410335460,0.00170528,3265.5,3265.0,3.68863684]
[1642410335860,0.00113685,3265.4,3265.0,3.68863684]
[1642410336364,0.00170528,3265.5,3265.0,3.68863684]
[1642410336759,0.00113685,3265.4,3265.1,2.62472163]
[1642410337161,0.00170528,3265.5,3265.1,2.62472163]
[1642410337560,1.06563,3265.6,3265.1,2.62472163]
[1642410337561,0.00113685,3265.4,3265.1,2.62472163]
[1642410337961,0.00170528,3265.5,3265.1,2.62472163]
[1642410338509,0.00113685,3265.4,3265.1,2.62472163]
[1642410338921,0.00170528,3265.5,3265.1,2.62472163]
[1642410339311,0.00113685,3265.4,3265.1,3.54582163]
[1642410339810,1.53107,3266.2,3265.1,3.54582163]
[1642410339811,1.53107,3266.2,3265.1,3.84582163]
[1642410340010,1.53107,3266.2,3265.1,3.54582163]
[1642410340211,0.00511582,3266.1,3265.6,1.13515582]
[1642410340412,0.76551,3266.0,3265.1,2.62472163]
[1642410340611,0.77005739,3266.0,3265.2,2.62472163]
[1642410340813,0.00397897,3265.9,3265.2,2.62472163]
[1642410341212,0.00341055,3265.8,3265.2,2.62472163]
[1642410341418,0.00341055,3265.8,3265.2,20.50472163]
[1642410341614,0.00284212,3265.7,3265.6,1.0082577]
[1642410343070,0.00284212,3265.7,3265.6,2.62472163]
[1642410344269,0.00284212,3265.7,3265.5,1.1003524]
[1642410344672,0.0022737,3265.6,3265.5,1.1003524]
[1642410345070,0.00511582,3265.6,3265.5,1.1003524]
[1642410348522,0.02777175,3265.6,3265.5,1.1003524]
[1642410350972,0.438,3266.8,3265.6,0.0051]
[1642410351273,2.938363,3267.5,3266.7,0.2501]
[1642410351470,1.1857,3267.6,3266.7,1.212]
[1642410351667,0.438,3267.8,3266.7,1.212]
[1642410351668,0.00511581,3267.0,3266.7,1.212]
[1642410351873,0.00511581,3267.0,3266.7,0.9619]
[1642410352071,2.48528679,3268.2,3266.7,0.9619]
[1642410352072,0.438,3268.6,3267.5,0.10185989]
[1642410352268,0.438,3268.6,3267.5,0.9354]
[1642410352269,1.5301488,3268.2,3267.5,0.9354]
[1642410352468,0.00341054,3267.6,3267.5,0.9354]
[1642410353270,0.00341054,3267.6,3267.1,3.9073]
[1642410353514,0.00341054,3267.6,3267.0,1.2211]
[1642410353515,4.317,3267.5,3267.0,1.2211]
[1642410353716,4.31984211,3267.5,3266.9,3.6283]
[1642410353917,0.00227369,3267.4,3266.9,3.6283]
[1642410354114,0.7651932,3267.3,3266.9,3.6283]
[1642410354319,0.76689847,3267.3,3266.9,3.6283]
[1642410354518,0.00113684,3267.2,3266.9,2.6997108]
[1642410354716,0.00113684,3267.2,3267.0,2.81533059]
[1642410354915,0.00113684,3267.2,3267.0,0.7043]
[1642410355515,0.00113684,3267.2,3267.0,2.9193565]
[1642410355716,0.00113684,3267.2,3267.0,0.7043]
[1642410356617,0.00113684,3267.2,3266.8,0.06537859]
[1642410358292,0.02093783,3267.1,3266.8,0.06537859]
[1642410360394,0.78625183,3267.1,3266.8,0.06537859]
[1642410361208,0.02093783,3267.1,3266.8,0.06537859]
[1642410364012,0.02093783,3267.1,3266.9,2.62351907]
[1642410364212,0.02093783,3267.1,3267.0,2.715519]
[1642410364617,4.317,3267.5,3267.0,2.715519]
[1642410364618,4.317,3267.5,3267.0,3.715519]
[1642410364867,4.317,3267.5,3267.1,17.88]
[1642410365070,0.00113685,3267.5,3267.3,11.55]
[1642410365277,7.41,3268.9,3267.3,11.55]
[1642410365278,1.5299007,3268.7,3267.4,3.91973898]
[1642410365472,0.7648573,3268.8,3267.5,0.438]
[1642410365670,7.41,3268.9,3267.5,0.438]
[1642410365671,0.00511581,3268.3,3267.5,0.438]
[1642410366075,0.00454739,3268.2,3267.6,1.209]
[1642410366270,0.00454739,3268.2,3267.7,0.438]
[1642410366471,0.00397897,3268.1,3267.7,19.1329]
[1642410366872,0.00341054,3268.0,3267.7,19.1329]
[1642410367070,0.00341054,3268.0,3267.8,1.26061527]
[1642410367274,0.7649264,3268.5,3267.8,1.26061527]
[1642410367275,0.00284212,3267.9,3267.8,1.26061527]
[1642410367471,0.00284212,3267.9,3267.8,4.35515383]
[1642410367671,0.00568424,3267.9,3267.8,4.35515383]
[1642410367871,0.00568424,3267.9,3267.8,22.23515383]
[1642410368512,0.00568424,3267.9,3267.8,24.8586729]
[1642410368716,0.01289729,3269.7,3267.8,24.59805763]
[1642410368917,0.01289729,3269.7,3268.0,17.88]
[1642410369116,0.00284211,3268.9,3268.1,5.79744659]
[1642410369316,0.00284211,3268.9,3268.1,6.93035186]
[1642410369514,7.41,3270.0,3268.2,0.12353685]
[1642410369515,0.00227369,3268.8,3268.2,0.12353685]
[1642410369715,0.00227369,3268.8,3268.6,1.35065516]
[1642410369920,7.41,3270.0,3268.7,3.0054866]
[1642410370316,0.00852635,3269.9,3268.7,3.0054866]
[1642410370518,0.7646701,3269.6,3268.7,3.0054866]
[1642410370916,0.00625265,3269.5,3268.7,3.0054866]
[1642410371318,0.00568423,3269.4,3268.7,3.0054866]
[1642410371716,0.00511581,3269.3,3268.7,3.0054866]
[1642410371916,0.00511581,3269.3,3268.5,7.69272551]
[1642410372116,0.00454738,3269.2,3268.5,7.69272551]
[1642410372572,0.00397896,3269.1,3268.7,1.5129398]
[1642410372769,0.00397896,3269.1,3268.8,2.73744815]
[1642410372970,0.00341054,3269.0,3268.6,2.94942144]
[1642410373369,0.00284211,3268.9,3268.6,2.94942144]
[1642410373770,0.00227369,3268.8,3268.6,20.82942144]
[1642410374070,0.00227369,3268.8,3268.7,3.37365219]
[1642410374269,0.3,3269.6,3268.7,4.27585219]
[1642410374469,0.7646556,3269.7,3268.8,17.88]
[1642410374669,8.1745749,3270.0,3268.9,3.09423891]
[1642410374869,0.00682108,3269.6,3269.5,1.50802826]
[1642410376114,0.00682108,3269.6,3269.3,6.18504174]
[1642410376312,0.00682108,3269.6,3269.3,5.18504174]
[1642410376510,0.11163929,3270.3,3269.3,5.18504174]
[1642410376511,0.00625265,3269.5,3269.3,5.18504174]
[1642410376913,0.00568423,3269.4,3269.3,5.18504174]
[1642410377312,0.01421058,3269.4,3269.3,5.18504174]
[1642410377511,0.01421058,3269.4,3269.3,0.06424174]
[1642410382563,0.01421058,3269.4,3269.3,1.29604742]
[1642410382962,0.01421058,3269.4,3269.3,4.07128292]
[1642410383166,0.01421058,3269.4,3269.3,4.29069044]
[1642410383612,0.01421058,3269.4,3269.3,23.30046016]
[1642410383817,0.01421058,3269.4,3269.3,23.17069044]
[1642410384011,0.01421058,3269.4,3269.3,22.17069044]
[1642410384611,0.01421058,3269.4,3269.3,22.28589044]
[1642410384811,0.01287907,3270.4,3269.3,24.91029214]
[1642410385012,0.7643952,3270.8,3269.7,17.88]
[1642410385211,0.7643952,3270.8,3269.9,17.88]
[1642410385411,1.0643952,3270.8,3269.9,17.88]
[1642410385614,1.0643952,3270.8,3270.0,0.00511581]
[1642410386014,1.0643952,3270.8,3269.6,2.96018617]
[1642410386213,1.0643952,3270.8,3269.8,1.4013523]
[1642410386412,2.5933541,3270.8,3269.8,1.4013523]
[1642410386612,2.5933541,3270.8,3269.9,0.00568423]
[1642410386815,2.5933541,3270.8,3269.9,2.77500551]
[1642410387012,2.5933541,3270.8,3269.9,0.00568423]
[1642410387268,2.5933541,3270.8,3270.0,0.00511581]
[1642410387467,2.5933541,3270.8,3269.9,0.00568423]
[1642410387869,2.5933541,3270.8,3269.6,0.0073895]
[1642410388268,0.0126785,3270.7,3269.6,0.0073895]
[1642410389168,0.0126785,3270.7,3269.6,1.45447071]
[1642410389568,0.0126785,3270.7,3269.7,0.00682108]
[1642410389769,2.5933541,3270.8,3269.7,2.75156675]
[1642410390172,2.5933541,3270.8,3269.8,0.00625266]
[1642410390772,2.5933541,3270.8,3270.4,1.28206648]
[1642410390773,0.7643952,3270.8,3270.4,1.28206648]
[1642410391026,0.764325,3271.1,3269.9,17.88]
[1642410391215,0.764325,3271.1,3270.5,0.00227369]
[1642410391415,1.064325,3271.1,3270.1,17.88]
[1642410391615,0.764325,3271.1,3270.2,2.78408982]
[1642410391818,0.764325,3271.1,3270.2,20.66408982]
[1642410392019,0.00170527,3271.2,3270.3,17.88341054]
[1642410392217,0.00170527,3271.2,3270.5,17.88]
[1642410392418,0.00113685,3271.1,3270.6,20.73430055]
[1642410392618,0.00113685,3271.1,3270.6,4.15791952]
[1642410392820,0.00284212,3271.4,3270.7,0.00113684]
[1642410393222,0.0022737,3271.3,3270.7,0.00113684]
[1642410394524,1.5287707,3271.2,3270.7,0.00113684]
[1642410394765,1.5287707,3271.2,3270.5,0.00227369]
[1642410394964,0.00113685,3271.1,3270.5,0.00227369]
[1642410395569,0.7643588,3271.0,3270.5,0.00227369]
[1642410395764,1.0643588,3271.0,3270.5,0.00227369]
[1642410396367,1.0643588,3271.0,3270.4,0.00284212]
[1642410397866,0.7643588,3271.0,3270.4,0.00284212]
[1642410398267,0.00113685,3271.1,3270.4,0.00284212]
[1642410398526,0.00113685,3271.1,3270.4,0.76710212]
[1642410398715,0.00113685,3271.1,3270.5,2.89182386]
[1642410398918,0.00113685,3271.1,3270.5,2.89409755]
[1642410399117,0.00113685,3271.1,3270.6,0.00170527]
[1642410399718,0.00113685,3271.1,3270.7,0.76418]
[1642410399918,0.00113685,3271.1,3270.7,3.5752701]
[1642410400517,0.00113685,3271.1,3270.7,21.4552701]
[1642410400718,2.71820797,3272.2,3271.2,1.202748]
[1642410400918,1.52410797,3272.2,3271.2,1.202748]
[1642410401120,0.00568423,3272.1,3271.2,1.202748]
[1642410401523,0.76923101,3272.0,3271.2,1.202748]
[1642410401721,0.76923101,3272.0,3270.8,1.15760527]
[1642410401921,0.30454739,3271.9,3270.8,1.15760527]
[1642410402122,0.30454739,3271.9,3270.9,0.00113685]
[1642410402367,0.00397896,3271.8,3270.9,0.00113685]
[1642410402566,0.7642011,3271.6,3270.9,0.00113685]
[1642410402966,0.00227369,3271.5,3270.9,0.00113685]
[1642410403365,0.00170527,3271.4,3270.9,0.00113685]
[1642410403767,0.00113685,3271.3,3270.9,0.00113685]
[1642410403965,0.00113685,3271.3,3270.9,17.88113685]
[1642410404170,0.00227369,3271.5,3270.9,0.00113685]
[1642410404565,0.00170527,3271.4,3270.9,0.76526685]
[1642410404965,0.00113685,3271.3,3270.9,0.76526685]
[1642410405368,0.00397896,3271.8,3270.9,0.76526685]
[1642410405767,0.00341054,3271.7,3270.9,0.76526685]
[1642410406214,0.00284212,3271.6,3270.9,0.76526685]
[1642410406513,0.00227369,3271.5,3270.9,0.00113685]
[1642410406914,0.00170527,3271.4,3270.9,0.00113685]
[1642410407114,0.00170527,3271.4,3271.0,2.62080384]
[1642410407315,0.00113685,3271.3,3271.0,2.62080384]
[1642410407714,0.30397896,3271.8,3271.0,2.62080384]
[1642410407915,0.30397896,3271.8,3270.9,2.62194069]
[1642410408113,0.00341054,3271.7,3270.9,2.62194069]
[1642410408513,0.00284212,3271.6,3270.9,0.00113685]
[1642410408913,0.00227369,3271.5,3270.9,0.00113685]
[1642410409316,0.3,3271.8,3270.9,0.00113685]
[1642410409317,0.00170527,3271.4,3270.9,0.00113685]
[1642410409774,0.00113685,3271.3,3270.9,2.62193959]
[1642410410075,0.00397896,3271.8,3270.9,3.38605959]
[1642410410275,0.00397896,3271.8,3271.1,17.88]
[1642410410476,0.00341054,3271.7,3271.2,2.40411997]
[1642410410675,0.00341054,3271.7,3271.4,17.88]
[1642410410874,0.00284212,3271.6,3271.4,17.88]
[1642410411077,0.00284212,3271.6,3271.5,2.83499578]
[1642410411274,11.58902764,3272.9,3271.5,3.61259578]
[1642410411477,0.763968,3272.7,3271.7,0.98853]
[1642410411674,0.763968,3272.7,3271.8,0.438]
[1642410411879,0.763968,3272.7,3271.8,18.318]
[1642410412277,0.0096632,3272.8,3271.8,18.318]
[1642410412477,0.0096632,3272.8,3272.1,18.64381]
[1642410412676,0.00909477,3272.7,3272.1,18.64381]
[1642410412875,0.00909477,3272.7,3272.1,18.70805174]
[1642410413076,0.00852635,3272.6,3272.1,18.70805174]
[1642410413528,0.00795793,3272.5,3272.1,18.70805174]
[1642410413919,0.0073895,3272.4,3272.1,19.47184174]
[1642410414118,0.0073895,3272.4,3272.1,19.58704174]
[1642410414318,0.00682108,3272.3,3272.1,19.47184174]
[1642410414722,1.30421215,3273.3,3272.1,19.47184174]
[1642410414723,0.00625266,3272.2,3272.1,19.47184174]
[1642410415120,0.00625266,3272.2,3272.1,19.77184174]
[1642410415620,0.00625266,3272.2,3272.1,20.20984174]
[1642410416020,0.00625266,3272.2,3272.1,22.82960851]
[1642410416520,0.00625266,3272.2,3272.1,24.39074289]
[1642410416721,0.00625266,3272.2,3272.1,23.62453289]
[1642410417028,0.00625266,3272.2,3272.1,27.43859754]
[1642410417265,2.94822764,3273.2,3272.2,0.01250532]
[1642410417466,2.38349218,3273.3,3272.2,18.33050532]
[1642410417666,0.00511581,3273.1,3272.2,18.33050532]
[1642410418067,0.00454738,3273.0,3272.2,18.33050532]
[1642410418468,0.00397896,3272.9,3272.2,18.33050532]
[1642410418868,0.00341054,3272.8,3272.3,2.61976677]
[1642410419269,0.00284211,3272.7,3272.3,2.61976677]
[1642410419673,0.00227369,3272.6,3272.3,2.61976677]
[1642410420070,0.00170527,3272.5,3272.3,2.61976677]
[1642410420370,0.00113684,3272.4,3272.3,2.61976677]
[1642410420570,0.00113684,3272.4,3272.2,0.45050532]
[1642410420870,0.00397896,3272.4,3272.2,0.75050532]
[1642410421726,0.00397896,3272.4,3272.2,0.01250532]
[1642410437222,0.00397896,3272.4,3272.2,0.02536529]
[1642410437422,0.00397896,3272.4,3272.2,0.01250532]
[1642410438622,0.00397896,3272.4,3272.3,1.23591751]
[1642410440578,7.896e-05,3272.4,3272.3,2.05261751]
[1642410440773,7.896e-05,3272.4,3272.3,22.70283606]
[1642410440972,7.896e-05,3272.4,3272.3,22.82776764]
[1642410441172,7.896e-05,3272.4,3272.3,23.83336764]
[1642410441374,15.62195565,3274.2,3272.3,23.83096764]
[1642410441572,1.4848,3274.1,3272.8,2.29094]
[1642410441772,1.4848,3274.1,3272.9,1.1745]
[1642410441773,0.00625266,3274.0,3272.9,1.1745]
[1642410442172,0.00568424,3273.9,3273.0,1.32565017]
[1642410442673,0.00511581,3273.8,3273.0,1.32565017]
[1642410443075,0.00454739,3273.7,3273.0,1.32565017]
[1642410443274,0.00454739,3273.7,3273.1,0.76363]
[1642410443523,0.00397897,3273.6,3273.1,0.76363]
[1642410443916,0.00341054,3273.5,3273.1,0.76363]
[1642410444316,0.00284212,3273.4,3273.1,0.76363]
[1642410444717,0.0022737,3273.3,3273.1,0.76363]
[1642410445118,0.00170527,3273.2,3273.1,0.75289]
[1642410445418,0.00170527,3273.2,3273.1,0.60768]
[1642410445820,0.00170527,3273.2,3273.1,21.12981138]
[1642410446020,0.00170527,3273.2,3273.1,21.56781138]
[1642410446219,0.00170527,3273.2,3273.1,21.71419745]
[1642410446619,0.00170527,3273.2,3273.1,21.64506745]
[1642410446820,0.00170527,3273.2,3273.1,3.59253745]
[1642410447021,0.00170527,3273.2,3273.1,4.31714745]
[1642410447769,0.00170527,3273.2,3273.1,4.65118106]
[1642410447974,2.94822764,3274.8,3273.9,0.76342]
[1642410448179,1.15353481,3275.1,3273.9,1.52683]
[1642410448180,4.10176245,3275.1,3273.9,1.52683]
[1642410448370,0.00738951,3274.5,3273.9,1.52683]
[1642410448768,2.96066245,3275.1,3273.9,1.52683]
[1642410448769,0.00682108,3274.4,3273.9,1.52683]
[1642410449169,0.00625266,3274.3,3274.0,2.61851745]
[1642410449370,0.00625266,3274.3,3274.0,3.38192745]
[1642410449569,0.00568424,3274.2,3274.0,3.38192745]
[1642410449769,0.00568424,3274.2,3274.0,2.61851745]
[1642410449973,0.00511581,3274.1,3274.0,2.61851745]
[1642410450271,0.00511581,3274.1,3273.9,1.90685]
[1642410450678,0.00454739,3274.0,3273.9,1.90685]
[1642410451718,0.00454739,3274.0,3273.9,3.24428803]
[1642410451922,0.00454739,3274.0,3273.9,3.54428803]
[1642410452119,0.00454739,3274.0,3273.9,11.27196807]
[1642410452319,0.00454739,3274.0,3273.9,25.78012008]
[1642410452524,0.00454739,3274.0,3273.9,25.89532008]
[1642410452722,0.00454739,3274.0,3273.9,25.89692008]
[1642410452922,0.00454739,3274.0,3273.9,25.89532008]
[1642410453124,0.00454739,3274.0,3273.9,25.89692008]
[1642410453524,0.00454739,3274.0,3273.9,25.89612008]
[1642410453725,1.1662,3275.7,3273.9,8.77865008]
[1642410453925,1.1662,3275.7,3274.6,0.76324]
[1642410454225,0.00682108,3275.2,3274.6,0.76324]
[1642410454627,0.00625266,3275.1,3274.6,0.76324]
[1642410455070,0.00568423,3275.0,3274.6,0.76324]
[1642410455470,0.00511581,3274.9,3274.6,1.52652]
[1642410455874,1.16827865,3275.5,3274.5,2.90589722]
[1642410455875,0.00454739,3274.8,3274.5,2.90589722]
[1642410456173,3.13008566,3276.1,3274.5,2.90589722]
[1642410456174,1.17561107,3276.2,3274.7,17.88]
[1642410456370,1.1631,3276.2,3274.8,3.21406174]
[1642410456571,0.00341054,3275.4,3274.8,22.39406174]
[1642410456770,0.00341054,3275.4,3274.9,0.12]
[1642410456971,0.00284211,3275.3,3275.0,1.96423]
[1642410457371,1.1631,3276.2,3275.0,0.438]
[1642410457372,0.00227369,3275.2,3275.0,0.438]
[1642410457571,0.00227369,3275.2,3274.9,3.7526]
[1642410457771,0.00170527,3275.1,3274.9,3.7526]
[1642410458177,0.00113684,3275.0,3274.9,3.7526]
[1642410458622,0.00397896,3275.0,3274.9,3.7526]
[1642410459221,0.00397896,3275.0,3274.8,0.06424174]
[1642410466033,0.00397896,3275.0,3274.6,0.00113685]
[1642410467920,0.00397896,3275.0,3274.6,0.76441685]
[1642410468220,0.00397896,3275.0,3274.7,0.3]
[1642410469622,0.00397896,3275.0,3274.7,3.14164517]
[1642410469870,0.00397896,3275.0,3274.7,0.3]
[1642410470071,0.00397896,3275.0,3274.7,3.1125036]
[1642410470271,0.00397896,3275.0,3274.7,4.6389636]
[1642410470472,0.00397896,3275.0,3274.7,1.82646]
[1642410470671,0.00397896,3275.0,3274.7,4.63413044]
[1642410471278,0.00397896,3275.0,3274.7,0.3]
[1642410471472,0.00397896,3275.0,3274.6,0.00113685]
[1642410471872,0.00397896,3275.0,3274.6,2.82640501]
[1642410472473,0.00397896,3275.0,3274.6,4.35296501]
[1642410472673,0.00397896,3275.0,3274.7,0.3]
[1642410474722,0.00397896,3275.0,3274.8,3.52205169]
[1642410475024,0.00397896,3275.0,3274.8,0.3]
[1642410475222,0.00397896,3275.0,3274.6,0.30113685]
[1642410475522,0.00397896,3275.0,3274.6,0.00113685]
[1642410476221,0.00397896,3275.0,3274.7,0.76332]
[1642410476623,0.00397896,3275.0,3274.9,1.41458022]
[1642410476924,0.00397896,3275.0,3274.9,1.71458022]
[1642410477125,0.00397896,3275.0,3274.9,5.99860786]
[1642410477373,0.00397896,3275.0,3274.9,4.05038022]
[1642410477573,0.00397896,3275.0,3274.9,6.17485502]
[1642410477774,0.00397896,3275.0,3274.9,9.96965502]
[1642410478276,0.00397896,3275.0,3274.9,13.58673445]
[1642410478673,0.00397896,3275.0,3274.9,12.58673445]
[1642410478875,0.00397896,3275.0,3274.9,13.58673445]
[1642410479677,0.00397896,3275.0,3274.9,12.58673445]
[1642410479977,0.00397896,3275.0,3274.9,9.46225965]
[1642410480176,0.00397896,3275.0,3274.9,12.31410998]
[1642410481041,0.00397896,3275.0,3274.9,9.69703055]
[1642410482930,0.00397896,3275.0,3274.9,12.31422287]
[1642410485374,0.00397896,3275.0,3274.9,9.46237254]
[1642410485973,0.00397896,3275.0,3274.9,9.76237254]
[1642410488619,0.7632947,3275.7,3274.9,9.76237254]
[1642410489019,0.00454738,3275.6,3274.9,9.76237254]
[1642410489422,0.00397896,3275.5,3274.9,9.76237254]
[1642410489820,0.00341054,3275.4,3274.9,9.76237254]
[1642410490018,0.00341054,3275.4,3275.0,2.61719232]
[1642410490218,0.7632947,3275.7,3275.0,2.61719232]
[1642410490219,0.00284211,3275.3,3275.0,2.61719232]
[1642410490619,0.00227369,3275.2,3275.0,2.61719232]
[1642410491018,0.00170527,3275.1,3275.0,2.61719232]
[1642410495478,0.00170527,3275.1,3275.0,4.03267082]
[1642410496334,0.00170527,3275.1,3275.0,4.33267082]
[1642410497033,0.00170527,3275.1,3275.0,2.91719232]
[1642410497238,0.00170527,3275.1,3275.0,2.61719232]
[1642410498033,0.00170527,3275.1,3274.5,1.1912]
[1642410498434,0.00113684,3275.0,3274.6,1.19534848]
[1642410498834,0.7634515,3275.2,3274.6,1.19534848]
[1642410499035,1.0634515,3275.2,3274.6,1.19534848]
[1642410499335,0.00170527,3275.1,3274.6,2.61733201]